bitfinex-derivatives/quotes_BTCF0:USTF0_20240825
["timestamp","ask_amount","ask_price","bid_price","bid_amount"]
[1724622730656,0.61011121,64393.0,64392.0,0.002]
[1724622732343,0.68181025,64393.0,64392.0,0.002]
[1724622732542,0.58877543,64393.0,64392.0,0.002]
[1724622733247,0.58877541,64393.0,64392.0,0.002]
[1724622736549,0.68181023,64393.0,64392.0,0.002]
[1724622736752,0.58877541,64393.0,64392.0,0.002]
[1724622736949,0.5887755,64393.0,64392.0,0.002]
[1724622738150,0.6787755,64393.0,64392.0,0.002]
[1724622739253,0.71564623,64393.0,64392.0,0.002]
[1724622739450,0.653611,64393.0,64392.0,0.04833294]
[1724622740749,0.653611,64393.0,64392.0,0.002]
[1724622743657,1.119491,64393.0,64392.0,0.002]
[1724622744252,1.519491,64393.0,64392.0,0.04841155]
[1724622744442,1.59703504,64393.0,64392.0,0.04841155]
[1724622745553,1.19703504,64393.0,64392.0,0.04841155]
[1724622746146,1.14465675,64393.0,64392.0,0.002]
[1724622746459,1.119491,64393.0,64392.0,0.002]
[1724622747456,1.519491,64393.0,64392.0,0.002]
[1724622748448,1.54465665,64393.0,64392.0,0.002]
[1724622749360,1.519491,64393.0,64392.0,0.002]
[1724622749560,1.5446566,64393.0,64392.0,0.002]
[1724622750551,1.67472464,64393.0,64392.0,0.04841155]
[1724622750755,1.6222677,64393.0,64392.0,0.002]
[1724622753569,1.597102,64393.0,64392.0,0.002]
[1724622753758,1.62226821,64393.0,64392.0,0.002]
[1724622754451,1.65225124,64393.0,64392.0,0.002]
[1724622755251,1.69026214,64393.0,64392.0,0.002]
[1724622756754,1.69026275,64393.0,64392.0,0.002]
[1724622757262,1.76088189,64393.0,64392.0,0.002]
[1724622758054,1.69026271,64393.0,64392.0,0.002]
[1724622758259,1.65225187,64393.0,64392.0,0.002]
[1724622758666,1.69026311,64393.0,64392.0,0.002]
[1724622759266,1.76087238,64393.0,64392.0,0.002]
[1724622759460,1.65225187,64393.0,64392.0,0.002]
[1724622759662,1.79887882,64393.0,64392.0,0.002]
[1724622759963,1.69026336,64393.0,64392.0,0.002]
[1724622760160,1.65225187,64393.0,64392.0,0.002]
[1724622760566,1.69026284,64393.0,64392.0,0.002]
[1724622760972,1.69026239,64393.0,64392.0,0.002]
[1724622761457,1.65225187,64393.0,64392.0,0.002]
[1724622761657,1.69026452,64393.0,64392.0,0.002]
[1724622761965,1.8142771,64393.0,64392.0,0.002]
[1724622762161,1.18706452,64393.0,64392.0,0.002]
[1724622762361,1.51906912,64393.0,64392.0,0.002]
[1724622764985,1.61214639,64393.0,64392.0,0.002]
[1724622765270,1.61214642,64393.0,64392.0,0.002]
[1724622765862,1.51906912,64393.0,64392.0,0.002]
[1724622766558,1.11906954,64393.0,64392.0,0.002]
[1724622768772,1.093902,64393.0,64392.0,0.002]
[1724622768962,1.11906949,64393.0,64392.0,0.002]
[1724622774773,0.65318949,64393.0,64392.0,0.002]
[1724622775363,0.68317427,64393.0,64392.0,0.002]
[1724622775560,0.68317401,64393.0,64392.0,0.002]
[1724622775766,0.65318949,64393.0,64392.0,0.002]
[1724622776471,0.683174,64393.0,64392.0,0.002]
[1724622776975,0.65318949,64393.0,64392.0,0.002]
[1724622777175,0.68317417,64393.0,64392.0,0.002]
[1724622777575,0.72118666,64393.0,64392.0,0.002]
[1724622780777,0.72118703,64393.0,64392.0,0.002]
[1724622784575,0.68317441,64393.0,64392.0,0.002]
[1724622789668,0.628022,64393.0,64392.0,0.002]
[1724622789867,0.68317553,64393.0,64392.0,0.002]
[1724622792570,0.72118894,64393.0,64392.0,0.002]
[1724622792976,0.77425683,64393.0,64392.0,0.002]
[1724622794085,0.77435535,64393.0,64392.0,0.002]
[1724622794581,0.628022,64393.0,64392.0,0.002]
[1724622794779,0.72118759,64393.0,64392.0,0.002]
[1724622794977,0.77426695,64393.0,64392.0,0.002]
[1724622795181,0.77436759,64393.0,64392.0,0.002]
[1724622797779,0.72118759,64393.0,64392.0,0.002]
[1724622797979,0.77436759,64393.0,64392.0,0.002]
[1724622799584,0.72118841,64393.0,64392.0,0.002]
[1724622807995,0.89061997,64393.0,64392.0,0.002]
[1724622808190,0.9436068,64393.0,64392.0,0.002]
[1724622809394,0.79745356,64393.0,64392.0,0.002]
[1724622809594,0.77418205,64393.0,64392.0,0.002]
[1724622809794,0.94361361,64393.0,64392.0,0.002]
[1724622810404,0.77418205,64393.0,64392.0,0.002]
[1724622811393,0.8486258,64393.0,64392.0,0.002]
[1724622811594,0.31695823,64393.0,64392.0,0.2818]
[1724622811803,0.15476462,64393.0,64392.0,0.2818]
[1724622812006,0.29826231,64393.0,64392.0,0.2818]
[1724622812209,0.35341593,64393.0,64392.0,0.2818]
[1724622812505,0.24476462,64393.0,64392.0,0.2818]
[1724622812705,0.35341593,64393.0,64392.0,0.2818]
[1724622812895,0.24476462,64393.0,64392.0,0.2818]
[1724622813100,0.35341593,64393.0,64392.0,0.2818]
[1724622813403,0.24476462,64393.0,64392.0,0.2818]
[1724622814305,0.1547544,64393.0,64392.0,0.2818]
[1724622814505,0.2447544,64393.0,64392.0,0.2818]
[1724622814702,0.21477469,64393.0,64392.0,0.2818]
[1724622817618,0.189611,64393.0,64392.0,0.2818]
[1724622818519,0.26710792,64393.0,64392.0,0.2818]
[1724622820222,0.189611,64393.0,64392.0,0.2818]
[1724622822725,0.21477403,64393.0,64392.0,0.2818]
[1724622829717,0.189611,64393.0,64392.0,0.2818]
[1724622833025,0.099611,64393.0,64392.0,0.2818]
[1724622833229,0.189611,64393.0,64392.0,0.2818]
[1724622834724,0.189611,64393.0,64392.0,0.2918]
[1724622835024,0.189611,64393.0,64392.0,0.2818]
[1724622836123,0.189611,64393.0,64392.0,0.2918]
[1724622836320,0.112,64393.0,64392.0,0.369412]
[1724622837833,0.022,64393.0,64392.0,0.459412]
[1724622838637,0.022,64393.0,64392.0,0.50582355]
[1724622840134,0.022,64393.0,64392.0,0.50590679]
[1724622840533,0.09945724,64393.0,64392.0,0.459412]
[1724622844436,0.022,64393.0,64392.0,0.459412]
[1724622844637,0.07713989,64393.0,64392.0,0.459412]
[1724622845940,0.07613989,64393.0,64392.0,0.459412]
[1724622846239,0.07513989,64393.0,64392.0,0.459412]
[1724622847036,0.1837912,64393.0,64392.0,0.459412]
[1724622847429,0.18379119,64393.0,64392.0,0.459412]
[1724622847740,0.07513988,64393.0,64392.0,0.459412]
[1724622848347,0.07513988,64393.0,64392.0,1.325292]
[1724622848639,0.15275088,64393.0,64392.0,0.47788]
[1724622848846,0.15275088,64393.0,64392.0,0.002]
[1724622851338,0.19075814,64393.0,64392.0,0.002]
[1724622852838,0.12277308,64393.0,64392.0,0.002]
[1724622856144,0.48357308,64393.0,64392.0,0.002]
[1724622856342,0.12277308,64393.0,64392.0,0.002]
[1724622856946,0.48357308,64393.0,64392.0,0.002]
[1724622857143,0.48357591,64393.0,64392.0,0.002]
[1724622859639,0.458411,64393.0,64392.0,0.002]
[1724622860044,0.53597034,64393.0,64392.0,0.002]
[1724622860651,0.458411,64393.0,64392.0,0.002]
[1724622861154,0.53597034,64393.0,64392.0,0.002]
[1724622861652,0.458411,64393.0,64392.0,0.002]
[1724622861844,0.53597034,64393.0,64392.0,0.002]
[1724622862653,0.458411,64393.0,64392.0,0.002]
[1724622864646,0.097611,64393.0,64392.0,0.002]
[1724622865548,0.097611,64393.0,64392.0,0.04854132]
[1724622867748,0.12277508,64393.0,64392.0,0.002]
[1724622870059,0.12277508,64393.0,64392.0,0.092]
[1724622870254,0.12277508,64393.0,64392.0,0.102]
[1724622871464,0.15275487,64393.0,64392.0,0.102]
[1724622871958,0.15275487,64393.0,64392.0,0.179612]
[1724622872960,0.12277508,64393.0,64392.0,0.179612]
[1724622873157,0.15275476,64393.0,64392.0,0.179612]
[1724622873458,0.12277508,64393.0,64392.0,0.179612]
[1724622873658,0.15275444,64393.0,64392.0,0.179612]
[1724622874163,0.15275444,64393.0,64392.0,0.169612]
[1724622874857,0.097611,64393.0,64392.0,0.169612]
[1724622882861,0.15275425,64393.0,64392.0,0.169612]
[1724622883067,0.19076056,64393.0,64392.0,0.169612]
[1724622884168,0.15275425,64393.0,64392.0,0.169612]
[1724622884560,0.19076066,64393.0,64392.0,0.169612]
[1724622885071,0.19076072,64393.0,64392.0,0.169612]
[1724622885268,0.19076048,64393.0,64392.0,0.169612]
[1724622886766,0.19076079,64393.0,64392.0,0.169612]
[1724622888166,0.26142562,64393.0,64392.0,0.169612]
[1724622889271,0.26142604,64393.0,64392.0,0.169612]
[1724622889570,0.15275467,64393.0,64392.0,0.169612]
[1724622889770,0.097611,64393.0,64392.0,0.179612]
[1724622890068,0.097611,64393.0,64392.0,0.24167872]
[1724622890465,0.097611,64393.0,64392.0,0.23167872]
[1724622892774,0.097611,64393.0,64392.0,0.06406672]
[1724622893074,0.097611,64393.0,64392.0,0.002]
[1724622893075,0.17523609,64393.0,64392.0,0.002]
[1724622893578,0.097611,64393.0,64392.0,0.002]
[1724622897674,0.12277543,64393.0,64392.0,0.002]
[1724622897875,0.22179115,64393.0,64392.0,0.002]
[1724622898073,0.31494395,64393.0,64392.0,0.002]
[1724622898676,0.6326638,64393.0,64392.0,0.002]
[1724622898871,0.7150638,64393.0,64392.0,0.002]
[1724622899171,0.92940085,64393.0,64392.0,0.002]
[1724622899373,0.78964454,64393.0,64392.0,0.002]
[1724622899976,0.73567193,64393.0,64392.0,0.002]
[1724622900778,0.7356755,64393.0,64392.0,0.002]
[1724622904879,0.66768459,64393.0,64392.0,0.002]
[1724622906885,0.55660724,64393.0,64392.0,0.002]
[1724622907091,0.53599911,64393.0,64392.0,0.002]
[1724622908601,0.458411,64393.0,64392.0,0.0485653]
[1724622908778,0.458411,64393.0,64392.0,0.002]
[1724622909796,0.097611,64393.0,64392.0,0.002]
[1724622911793,0.15275425,64393.0,64392.0,0.002]
[1724622912092,0.20625045,64393.0,64392.0,0.002]
[1724622912285,0.2613937,64393.0,64392.0,0.002]
[1724622913587,0.15275425,64393.0,64392.0,0.002]
[1724622915992,0.15275425,64393.0,64392.0,0.012]
[1724622916193,0.15275425,64393.0,64392.0,0.002]
[1724622919002,0.07514325,64393.0,64392.0,0.089612]
[1724622919597,0.07514325,64393.0,64392.0,0.450412]
[1724622919798,0.08206495,64393.0,64392.0,0.51247872]
[1724622920199,0.02,64393.0,64392.0,0.450412]
[1724622920506,0.02,64393.0,64392.0,0.5123895]
[1724622926827,0.08206495,64393.0,64392.0,0.450412]
[1724622927318,0.02,64393.0,64392.0,0.450412]
[1724622930216,0.02,64393.0,64392.0,1.316292]
[1724622930410,0.02,64393.0,64392.0,1.37823696]
[1724622931521,0.02,64393.0,64392.0,0.3628]
[1724622931711,0.15967595,64393.0,64392.0,0.40923759]
[1724622931911,0.097611,64393.0,64392.0,0.3628]
[1724622932619,0.097611,64393.0,64392.0,0.002]
[1724622932620,0.17519219,64393.0,64392.0,0.002]
[1724622934620,0.097611,64393.0,64392.0,0.002]
[1724622935119,0.15275612,64393.0,64392.0,0.002]
[1724622937525,0.26139557,64393.0,64392.0,0.002]
[1724622938520,0.20625045,64393.0,64392.0,0.002]
[1724622938827,0.26139557,64393.0,64392.0,0.002]
[1724622939322,0.55156469,64393.0,64392.0,0.002]
[1724622939629,0.62215321,64393.0,64392.0,0.002]
[1724622941920,0.458411,64393.0,64392.0,0.002]
[1724622944633,0.458411,64393.0,64392.0,0.04843759]
[1724622946022,0.097611,64393.0,64392.0,0.092]
[1724622947831,0.097611,64393.0,64392.0,0.102]
[1724622951132,0.14414555,64393.0,64392.0,0.16394496]
[1724622953027,0.14414555,64393.0,64392.0,0.102]
[1724622953632,0.097611,64393.0,64392.0,0.102]
[1724622955424,0.097611,64393.0,64392.0,0.179612]
[1724622955425,0.02,64393.0,64392.0,0.179612]
[1724622957038,0.04516174,64393.0,64392.0,0.179612]
[1724622957733,0.04516174,64393.0,64392.0,0.645492]
[1724622957926,0.11306013,64393.0,64392.0,0.865492]
[1724622958131,0.13822187,64393.0,64392.0,0.865492]
[1724622958633,0.04516111,64393.0,64392.0,0.865492]
[1724622959133,0.13822124,64393.0,64392.0,0.865492]
[1724622960536,0.04516111,64393.0,64392.0,0.865492]
[1724622961138,0.04516111,64393.0,64392.0,1.265492]
[1724622961942,0.04516044,64393.0,64392.0,1.265492]
[1724622962342,0.03616044,64393.0,64392.0,1.264492]
[1724622962642,0.04416044,64393.0,64392.0,1.265492]
[1724622963544,0.04316044,64393.0,64392.0,1.265492]
[1724622964644,0.04316044,64393.0,64392.0,0.865492]
[1724622965037,0.018,64393.0,64392.0,0.865492]
[1724622967544,0.06452489,64393.0,64392.0,0.865492]
[1724622967737,0.06452489,64393.0,64392.0,0.92742743]
[1724622968239,0.06452489,64393.0,64392.0,0.089612]
[1724622968440,0.095611,64393.0,64392.0,0.092]
[1724622968945,0.095611,64393.0,64392.0,0.102]
[1724622970749,0.095611,64393.0,64392.0,0.14844578]
[1724622972051,0.12077361,64393.0,64392.0,0.102]
[1724622972642,0.12077361,64393.0,64392.0,0.012]
[1724622972841,0.12077361,64393.0,64392.0,0.002]
[1724622973149,0.15075212,64393.0,64392.0,0.012]
[1724622973347,0.15075212,64393.0,64392.0,0.002]
[1724622973743,0.15075212,64393.0,64392.0,0.012]
[1724622974345,0.15075212,64393.0,64392.0,0.002]
[1724622974346,0.12077361,64393.0,64392.0,0.002]
[1724622975249,0.12077361,64393.0,64392.0,0.012]
[1724622975452,0.12077361,64393.0,64392.0,0.002]
[1724622975639,0.04316261,64393.0,64392.0,0.002]
[1724622975843,0.04316261,64393.0,64392.0,0.012]
[1724622977250,0.04316261,64393.0,64392.0,0.03141265]
[1724622979458,0.04316261,64393.0,64392.0,0.10902465]
[1724622980045,0.018,64393.0,64392.0,0.10902465]
[1724622982754,0.018,64393.0,64392.0,0.089612]
[1724622983055,0.018,64393.0,64392.0,0.109025]
[1724622983260,0.018,64393.0,64392.0,0.10902481]
[1724622983760,0.018,64393.0,64392.0,0.089612]
[1724622986760,0.06455936,64393.0,64392.0,0.16676168]
[1724622987060,0.04316049,64393.0,64392.0,0.089612]
[1724622988063,0.018,64393.0,64392.0,0.089612]
[1724622989047,0.04797589,64393.0,64392.0,0.089612]
[1724622989248,0.07313638,64393.0,64392.0,0.089612]
[1724622989959,0.04316049,64393.0,64392.0,0.10902421]
[1724622990161,0.11111621,64393.0,64392.0,0.10902421]
[1724622990457,0.018,64393.0,64392.0,0.10902421]
[1724622990660,0.11111461,64393.0,64392.0,0.10902421]
[1724622990859,0.11111522,64393.0,64392.0,0.10902421]
[1724622991158,0.13627509,64393.0,64392.0,0.10902421]
[1724622991363,0.04316048,64393.0,64392.0,0.10902421]
[1724622991558,0.11111571,64393.0,64392.0,0.10902421]
[1724622991756,0.13627619,64393.0,64392.0,0.10902421]
[1724622992455,0.13627619,64393.0,64392.0,0.089612]
[1724622992456,0.04316048,64393.0,64392.0,0.089612]
[1724622992648,0.11111621,64393.0,64392.0,0.10902446]
[1724622992846,0.13627669,64393.0,64392.0,0.10902446]
[1724622993162,0.04316048,64393.0,64392.0,0.10902446]
[1724622993361,0.11111485,64393.0,64392.0,0.10902446]
[1724622993655,0.04316048,64393.0,64392.0,0.10902446]
[1724622993861,0.11111494,64393.0,64392.0,0.10902446]
[1724622994056,0.018,64393.0,64392.0,0.10902446]
[1724622994856,0.11111391,64393.0,64392.0,0.10902446]
[1724622995055,0.13627439,64393.0,64392.0,0.10902446]
[1724622995264,0.06455681,64393.0,64392.0,0.22728284]
[1724622996760,0.018,64393.0,64392.0,0.22728284]
[1724622997065,0.018,64393.0,64392.0,0.20787038]
[1724623002164,0.018,64393.0,64392.0,0.089612]
[1724623002468,0.04316019,64393.0,64392.0,0.089612]
[1724623005070,0.04316019,64393.0,64392.0,0.10902386]
[1724623005564,0.04316019,64393.0,64392.0,0.089612]
[1724623005766,0.04316016,64393.0,64392.0,0.25712383]
[1724623006670,0.04316016,64393.0,64392.0,0.61792383]
[1724623008767,0.03316016,64393.0,64392.0,0.61792292]
[1724623008971,0.02516016,64393.0,64392.0,0.61692292]
[1724623009273,0.02515898,64393.0,64392.0,0.54131092]
[1724623009565,0.02515899,64393.0,64392.0,0.54131092]
[1724623009773,0.02515899,64394.0,64392.0,0.54131092]
[1724623009970,0.02515899,64394.0,64393.0,0.10941092]
[1724623010167,0.00023309,64395.0,64393.0,0.3376623]
[1724623010367,0.00023309,64395.0,64394.0,0.1376623]
[1724623010577,0.00023309,64395.0,64394.0,0.2476623]
[1724623011071,0.00023309,64395.0,64394.0,0.22865138]
[1724623011469,0.00023309,64395.0,64394.0,1.11394221]
[1724623011769,0.00023309,64395.0,64394.0,1.19155221]
[1724623011971,0.00023309,64395.0,64394.0,1.19155209]
[1724623012570,0.04655207,64398.0,64397.0,0.077606]
[1724623012772,0.04655207,64399.0,64397.0,0.70650426]
[1724623012977,0.04655207,64399.0,64398.0,0.167605]
[1724623013169,0.04655207,64399.0,64398.0,0.237605]
[1724623013377,0.03871207,64399.0,64398.0,0.237605]
[1724623013672,0.03871207,64399.0,64398.0,0.238005]
[1724623014274,0.06206943,64403.0,64401.0,0.077601]
[1724623014578,0.06206943,64403.0,64402.0,0.09]
[1724623014876,0.06206943,64403.0,64402.0,0.13]
[1724623015174,0.06206943,64403.0,64402.0,0.208]
[1724623015476,0.07106943,64403.0,64402.0,0.208]
[1724623015867,0.06206943,64403.0,64402.0,0.208]
[1724623016071,0.07206943,64403.0,64402.0,0.209]
[1724623016880,0.07206943,64403.0,64402.0,0.21]
[1724623016881,0.08006943,64403.0,64402.0,0.21]
[1724623017267,0.018,64403.0,64402.0,0.25645712]
[1724623018372,0.018,64403.0,64402.0,0.21]
[1724623020778,0.018,64403.0,64402.0,0.25645712]
[1724623020974,0.08003889,64403.0,64402.0,0.25645712]
[1724623022377,0.08003889,64403.0,64402.0,0.21]
[1724623024573,0.018,64403.0,64402.0,0.21]
[1724623025775,0.04315655,64403.0,64402.0,0.21]
[1724623026371,0.04315655,64403.0,64402.0,0.22940803]
[1724623026577,0.04315655,64403.0,64402.0,0.21]
[1724623028975,0.04315499,64403.0,64402.0,0.21]
[1724623029282,0.018,64403.0,64402.0,0.21]
[1724623029879,0.09547027,64403.0,64402.0,0.21]
[1724623030181,0.09547027,64403.0,64402.0,1.07584]
[1724623031479,0.018,64403.0,64402.0,1.07584]
[1724623031980,0.0774559,64406.0,64402.0,0.15080742]
[1724623032281,0.06196113,64420.0,64406.0,0.077595]
[1724623032477,0.0627,64421.0,64416.0,0.4508]
[1724623032678,0.0627,64421.0,64416.0,0.4708]
[1724623032997,0.0627,64421.0,64416.0,0.4712]
[1724623033189,0.0627,64421.0,64416.0,0.51756833]
[1724623033484,0.0627,64421.0,64416.0,0.59515133]
[1724623033485,0.05833,64417.0,64416.0,0.59515133]
[1724623033686,0.05833,64417.0,64416.0,0.55666584]
[1724623033980,0.07233,64417.0,64416.0,0.60403417]
[1724623034388,0.07233,64417.0,64416.0,0.55766584]
[1724623034882,0.00015118,64423.0,64422.0,0.077576]
[1724623035086,0.00015118,64423.0,64422.0,0.458376]
[1724623035779,0.1317,64432.0,64422.0,0.3812]
[1724623035975,0.1317,64432.0,64431.0,0.3608]
[1724623036179,0.12515,64432.0,64431.0,0.3608]
[1724623036385,0.06196113,64439.0,64431.0,0.3708]
[1724623036684,0.12636113,64440.0,64436.0,0.09]
[1724623036887,0.12636113,64440.0,64433.0,0.077562]
[1724623037083,0.12636113,64440.0,64439.0,0.09]
[1724623037288,0.0644,64440.0,64439.0,0.09]
[1724623037685,0.0644,64440.0,64439.0,0.0904]
[1724623038681,0.0734,64440.0,64439.0,0.0914]
[1724623039385,0.0734,64440.0,64439.0,0.0924]
[1724623040787,0.0734,64440.0,64439.0,0.1024]
[1724623041384,0.0734,64440.0,64439.0,0.179955]
[1724623041787,0.06556,64440.0,64439.0,0.179955]
[1724623042086,0.06556,64440.0,64439.0,0.540755]
[1724623042087,0.009,64440.0,64439.0,0.540755]
[1724623043393,0.00141,64440.0,64439.0,0.540755]
[1724623045186,0.00141,64440.0,64439.0,0.539755]
[1724623045381,0.066,64448.0,64439.0,0.4632]
[1724623045591,0.066,64448.0,64446.0,0.3608]
[1724623045787,0.066,64448.0,64446.0,0.3708]
[1724623046287,0.066,64448.0,64447.0,0.0004]
[1724623046487,0.066,64448.0,64447.0,0.0104]
[1724623047297,0.09113984,64448.0,64447.0,0.00936001]
[1724623048289,0.12109106,64448.0,64447.0,0.00936001]
[1724623048596,0.0911398,64448.0,64447.0,0.00936001]
[1724623048992,0.0911398,64448.0,64447.0,0.01136001]
[1724623049186,0.0251398,64448.0,64447.0,0.08890601]
[1724623049493,0.0251398,64453.0,64447.0,0.08890601]
[1724623049691,0.05509105,64452.0,64447.0,0.08890601]
[1724623049896,0.05509105,64451.0,64447.0,0.08890601]
[1724623050094,0.05509105,64450.0,64447.0,0.01136001]
[1724623050287,0.077545,64448.0,64447.0,0.002]
[1724623050487,0.05509105,64448.0,64444.0,0.00023291]
[1724623050693,0.46552,64447.0,64444.0,0.00023291]
[1724623050896,0.05509105,64446.0,64444.0,0.00023291]
[1724623051095,0.52061105,64446.0,64444.0,0.00023291]
[1724623051399,0.52101105,64445.0,64444.0,0.00023291]
[1724623051595,0.52101105,64445.0,64444.0,0.09023291]
[1724623051893,0.99855905,64445.0,64444.0,0.09023291]
[1724623052284,0.99855905,64445.0,64444.0,0.09123291]
[1724623052495,1.10715614,64445.0,64444.0,0.09123291]
[1724623052695,1.10715614,64445.0,64444.0,0.11264206]
[1724623052891,0.24163614,64445.0,64444.0,0.11264206]
[1724623053097,0.24163614,64445.0,64444.0,0.11164206]
[1724623053294,0.24163614,64445.0,64444.0,0.11264206]
[1724623053601,0.13303905,64445.0,64444.0,0.11264206]
[1724623054499,0.24163614,64445.0,64444.0,0.11264206]
[1724623055389,0.077948,64445.0,64444.0,0.11264206]
[1724623057504,0.077948,64445.0,64444.0,0.12264206]
[1724623059109,0.077948,64445.0,64444.0,0.48344206]
[1724623059406,0.077948,64445.0,64444.0,0.12264206]
[1724623059914,0.13961099,64445.0,64444.0,0.12264206]
[1724623060406,0.077948,64445.0,64444.0,0.12264206]
[1724623061107,0.0004,64445.0,64444.0,0.12264206]
[1724623061299,0.0004,64445.0,64444.0,0.20019106]
[1724623062105,0.0004,64445.0,64444.0,0.56099106]
[1724623063114,0.05549461,64445.0,64444.0,0.56099106]
[1724623066701,0.17965398,64445.0,64444.0,0.56099106]
[1724623067409,0.21740883,64445.0,64444.0,0.56099106]
[1724623067605,0.09346671,64445.0,64444.0,0.56099106]
[1724623067810,0.05549461,64445.0,64444.0,0.56099106]
[1724623068014,0.16394433,64445.0,64444.0,0.56099106]
[1724623068211,0.05549461,64445.0,64444.0,0.56099106]
[1724623068407,0.16394433,64445.0,64444.0,0.56099106]
[1724623069706,0.1639427,64445.0,64444.0,0.56099106]
[1724623070407,0.07789144,64445.0,64444.0,0.56099106]
[1724623071405,0.07789675,64445.0,64444.0,0.56099106]
[1724623072203,0.0004,64445.0,64444.0,0.56099106]
[1724623073209,0.02554067,64445.0,64444.0,0.20019106]
[1724623077617,0.05549305,64445.0,64444.0,0.20019106]
[1724623077918,0.17943668,64445.0,64444.0,0.20019106]
[1724623079719,0.09346609,64445.0,64444.0,0.20019106]
[1724623079920,0.05549383,64445.0,64444.0,0.20019106]
[1724623080220,0.09346609,64445.0,64444.0,0.20019106]
[1724623080417,0.05549383,64445.0,64444.0,0.20019106]
[1724623081219,0.17943637,64445.0,64444.0,0.20019106]
[1724623081615,0.17943635,64445.0,64444.0,0.20019106]
[1724623082621,0.09349575,64445.0,64444.0,0.20019106]
[1724623082817,0.05549381,64445.0,64444.0,0.20019106]
[1724623084021,0.09349575,64445.0,64444.0,0.20019106]
[1724623084227,0.05549381,64445.0,64444.0,0.20019106]
[1724623084724,0.02554106,64445.0,64444.0,0.20019106]
[1724623086632,0.02554091,64445.0,64444.0,0.20019106]
[1724623088029,0.11857771,64445.0,64444.0,0.20019106]
[1724623089030,0.02554091,64445.0,64444.0,0.20019106]
[1724623089631,0.02554091,64445.0,64444.0,0.02264206]
[1724623089937,0.05549515,64445.0,64444.0,0.11264206]
[1724623090233,0.05549512,64445.0,64444.0,0.12264206]
[1724623090434,0.13304312,64445.0,64444.0,0.12264206]
[1724623091537,0.13304537,64445.0,64444.0,0.12264206]
[1724623091731,0.17101526,64445.0,64444.0,0.12264206]
[1724623091938,0.10309068,64445.0,64444.0,0.12264206]
[1724623092639,0.13304537,64445.0,64444.0,0.12264206]
[1724623092828,0.17102007,64445.0,64444.0,0.12264206]
[1724623094840,0.17101569,64445.0,64444.0,0.12264206]
[1724623097533,0.17101569,64445.0,64444.0,0.10037786]
[1724623097739,0.3263071,64445.0,64444.0,0.01037786]
[1724623097934,0.17101569,64445.0,64444.0,0.10037786]
[1724623098141,0.63653569,64445.0,64444.0,0.10037786]
[1724623098339,1.03653569,64445.0,64444.0,0.10037786]
[1724623098535,1.03653569,64445.0,64444.0,0.01037786]
[1724623098843,0.99856278,64445.0,64444.0,0.10037786]
[1724623099137,1.03653831,64445.0,64444.0,0.10037786]
[1724623099344,1.09031262,64445.0,64444.0,0.10037786]
[1724623099540,1.09027251,64445.0,64444.0,0.10037786]
[1724623099736,1.12876278,64445.0,64444.0,0.10037786]
[1724623101138,1.128768,64445.0,64444.0,0.10037786]
[1724623101647,0.728768,64445.0,64444.0,0.10037786]
[1724623104140,0.077555,64439.0,64438.0,0.00023291]
[1724623104442,0.10269888,64439.0,64438.0,0.00023291]
[1724623104741,0.96825888,64439.0,64438.0,0.00023291]
[1724623105040,0.99861646,64439.0,64438.0,0.00023291]
[1724623105637,0.59861646,64439.0,64438.0,0.02098381]
[1724623106241,0.60061646,64439.0,64438.0,0.02098381]
[1724623106440,0.60061646,64439.0,64438.0,0.11098381]
[1724623107347,0.10509888,64439.0,64438.0,0.18854081]
[1724623107545,0.02754388,64439.0,64438.0,0.18854081]
[1724623107745,0.07985477,64439.0,64438.0,0.19854081]
[1724623107943,0.0024,64439.0,64438.0,0.19854081]
[1724623108341,0.0024,64439.0,64438.0,0.32749906]
[1724623108941,0.0024,64439.0,64438.0,0.28113916]
[1724623110739,0.0024,64439.0,64438.0,0.26174081]
[1724623110940,0.0024,64439.0,64438.0,0.28113855]
[1724623111746,0.0024,64439.0,64438.0,0.30806964]
[1724623112751,0.0024,64439.0,64438.0,0.26174081]
[1724623114447,0.0024,64439.0,64438.0,0.30806964]
[1724623114849,0.0024,64439.0,64438.0,0.26174081]
[1724623115150,0.05749552,64439.0,64438.0,0.26174081]
[1724623115748,0.05749552,64439.0,64438.0,0.18418381]
[1724623116243,0.05749552,64439.0,64438.0,0.03098381]
[1724623116443,0.05749552,64439.0,64438.0,0.02098381]
[1724623116444,0.15158787,64439.0,64438.0,0.02098381]
[1724623116642,0.15150694,64439.0,64438.0,0.02098381]
[1724623116843,0.13505052,64439.0,64438.0,0.02098381]
[1724623117049,0.17302457,64439.0,64438.0,0.00023291]
[1724623119348,0.29698209,64439.0,64438.0,0.00023291]
[1724623119853,0.17302457,64439.0,64438.0,0.00023291]
[1724623120051,0.22611066,64439.0,64438.0,0.00023291]
[1724623120254,0.17304191,64439.0,64438.0,0.00023291]
[1724623120443,0.2260485,64439.0,64438.0,0.00023291]
[1724623120648,0.17304191,64439.0,64438.0,0.00023291]
[1724623121348,0.2260485,64439.0,64438.0,0.00023291]
[1724623122253,0.17304191,64439.0,64438.0,0.00023291]
[1724623122751,0.198054,64439.0,64438.0,0.00023291]
[1724623123758,0.10510169,64439.0,64438.0,0.00023291]
[1724623126759,0.19805554,64439.0,64438.0,0.00023291]
[1724623127256,0.10510169,64439.0,64438.0,0.00023291]
[1724623127551,0.19805554,64439.0,64438.0,0.00023291]
[1724623128052,0.077561,64434.0,64433.0,0.09]
[1724623128643,0.15502955,64434.0,64433.0,0.09]
[1724623128850,0.15542955,64434.0,64433.0,0.09]
[1724623130148,0.15542955,64434.0,64433.0,0.093]
[1724623131559,0.077961,64434.0,64433.0,0.093]
[1724623133447,0.15542955,64434.0,64433.0,0.093]
[1724623134154,0.077961,64434.0,64433.0,0.093]
[1724623137757,0.13306809,64434.0,64433.0,0.093]
[1724623138964,0.13306809,64434.0,64433.0,0.003]
[1724623139160,0.17104949,64434.0,64433.0,0.003]
[1724623139364,0.70024949,64434.0,64433.0,0.003]
[1724623139569,0.75315863,64434.0,64433.0,0.003]
[1724623139857,0.75265819,64434.0,64433.0,0.003]